[Event "*** Titled Tuesday Blitz"]
[Site "Chess.com"]
[Date "2021.04.06"]
[Round "5"]
[White "Goryachkina"]
[Black "Shuvalov"]
[Result "0-1"]
[WhiteElo "2620"]
[BlackElo "2467"]
[TimeControl "180+1"]
[EndTime "10:58:27 PDT"]
[Termination "Shuvalov won by resignation"]

1. e4 {[%clk 0:02:59.7]} 1... e6 {[%clk 0:02:59.6]} 2. d4 {[%clk 0:02:59.3]}
2... d5 {[%clk 0:02:59.8]} 3. e5 {[%clk 0:02:59.6]} 3... c5 {[%clk 0:02:59.8]}
4. c3 {[%clk 0:02:59.8]} 4... Nc6 {[%clk 0:03:00.2]} 5. Nf3 {[%clk 0:03:00.1]}
5... Qb6 {[%clk 0:03:00.4]} 6. a3 {[%clk 0:02:51]} 6... Bd7 {[%clk 0:02:59.1]}
7. Be2 {[%clk 0:02:48]} 7... Nh6 {[%clk 0:02:44.5]} 8. b4 {[%clk 0:02:37.8]}
8... cxd4 {[%clk 0:02:43.6]} 9. cxd4 {[%clk 0:02:37.8]} 9... Nf5 {[%clk
0:02:42.7]} 10. Be3 {[%clk 0:02:35.3]} 10... Rc8 {[%clk 0:02:36.8]} 11. O-O
{[%clk 0:02:32.9]} 11... Be7 {[%clk 0:02:36.2]} 12. Bd3 {[%clk 0:02:10]} 12...
Nxe3 {[%clk 0:02:35]} 13. fxe3 {[%clk 0:02:10]} 13... O-O {[%clk 0:02:31.8]} 14.
Nbd2 {[%clk 0:02:07.9]} 14... Nb8 {[%clk 0:02:29]} 15. Qe2 {[%clk 0:02:03.1]}
15... Rc3 {[%clk 0:02:12.7]} 16. Rf2 {[%clk 0:01:49.1]} 16... a5 {[%clk
0:01:56.2]} 17. b5 {[%clk 0:01:27.3]} 17... a4 {[%clk 0:01:38.1]} 18. h4 {[%clk
0:01:04.5]} 18... h6 {[%clk 0:01:37.5]} 19. h5 {[%clk 0:01:02.6]} 19... Rxa3
{[%clk 0:01:21.8]} 20. Rxa3 {[%clk 0:00:54.8]} 20... Bxa3 {[%clk 0:01:22.7]} 21.
Qd1 {[%clk 0:00:46.7]} 21... Qa5 {[%clk 0:01:03.8]} 22. Nb1 {[%clk 0:00:28]}
22... Be7 {[%clk 0:00:58.1]} 23. Qe2 {[%clk 0:00:27.8]} 23... a3 {[%clk
0:00:56.1]} 24. g4 {[%clk 0:00:23.2]} 24... Qb4 {[%clk 0:00:30.8]} 25. Rg2
{[%clk 0:00:19.6]} 25... Bxb5 {[%clk 0:00:29.1]} 26. Bxb5 {[%clk 0:00:16.9]}
26... Qxb1+ {[%clk 0:00:29.3]} 27. Kh2 {[%clk 0:00:17]} 27... a2 {[%clk
0:00:28.1]} 28. Qxa2 {[%clk 0:00:15]} 28... Qxb5 {[%clk 0:00:27.7]} 29. g5
{[%clk 0:00:13.5]} 29... Bxg5 {[%clk 0:00:24.3]} 30. Nxg5 {[%clk 0:00:13.9]}
30... hxg5 {[%clk 0:00:24.6]} 31. Rxg5 {[%clk 0:00:14.2]} 31... Qd3 {[%clk
0:00:21.4]} 32. h6 {[%clk 0:00:08.8]} 32... g6 {[%clk 0:00:17.5]} 33. Qf2 {[%clk
0:00:08.5]} 33... Nd7 {[%clk 0:00:13.1]} 34. Rg1 {[%clk 0:00:04.1]} 34... Kh7
{[%clk 0:00:12.1]} 35. Rc1 {[%clk 0:00:03.3]} 35... b5 {[%clk 0:00:09.7]} 36.
Rc7 {[%clk 0:00:03.2]} 36... Qf5 {[%clk 0:00:06.9]} 37. Qxf5 {[%clk 0:00:02.8]}
37... gxf5 {[%clk 0:00:07.7]} 38. Rxd7 {[%clk 0:00:03.4]} 38... Rb8 {[%clk
0:00:07.6]} 39. Rxf7+ {[%clk 0:00:02.8]} 39... Kxh6 {[%clk 0:00:08]} 40. Rc7
{[%clk 0:00:02.7]} 40... b4 {[%clk 0:00:07.8]} 41. Rc2 {[%clk 0:00:02.9]} 41...
b3 {[%clk 0:00:08.2]} 42. Rb2 {[%clk 0:00:03.5]} 42... Kg5 {[%clk 0:00:08.6]}
43. Kg3 {[%clk 0:00:04.1]} 43... Rb4 {[%clk 0:00:08.1]} 44. Kf3 {[%clk
0:00:03.8]} 44... Kh4 {[%clk 0:00:07.8]} 45. Kf4 {[%clk 0:00:03.4]} 45... Kh5
{[%clk 0:00:08.2]} 46. Kf3 {[%clk 0:00:03.6]} 46... Kg5 {[%clk 0:00:08.3]} 47.
Kg3 {[%clk 0:00:04.1]} 47... f4+ {[%clk 0:00:07.5]} 48. exf4+ {[%clk 0:00:04]}
48... Kf5 {[%clk 0:00:08.4]} 49. Kf3 {[%clk 0:00:03.7]} 49... Rxd4 {[%clk
0:00:08.1]} 50. Rxb3 {[%clk 0:00:02]} 50... Rxf4+ {[%clk 0:00:08.3]} 51. Ke3
{[%clk 0:00:02.6]} 51... Re4+ {[%clk 0:00:08.5]} 52. Kd3 {[%clk 0:00:02.2]}
52... Kxe5 {[%clk 0:00:08.8]} 53. Rb6 {[%clk 0:00:02.5]} 53... Rh4 {[%clk
0:00:08.7]} 0-1

[Event "*** Titled Tuesday Blitz"]
[Site "Chess.com"]
[Date "2021.04.06"]
[Round "5"]
[White "Alexander_Zubov"]
[Black "Zq1"]
[Result "1-0"]
[WhiteElo "2985"]
[BlackElo "2542"]
[TimeControl "180+1"]
[EndTime "10:58:28 PDT"]
[Termination "Alexander_Zubov won on time"]

1. d4 {[%clk 0:03:00.9]} 1... d5 {[%clk 0:02:59.8]} 2. c4 {[%clk 0:03:00]} 2...
e6 {[%clk 0:03:00]} 3. Nc3 {[%clk 0:02:58.7]} 3... Be7 {[%clk 0:03:00.1]} 4. Nf3
{[%clk 0:02:57.9]} 4... Nf6 {[%clk 0:03:00]} 5. Bg5 {[%clk 0:02:57.3]} 5... h6
{[%clk 0:02:59.7]} 6. Bh4 {[%clk 0:02:56.9]} 6... O-O {[%clk 0:02:59]} 7. e3
{[%clk 0:02:57]} 7... b6 {[%clk 0:02:59.1]} 8. Rc1 {[%clk 0:02:55.9]} 8... Bb7
{[%clk 0:02:58.8]} 9. a3 {[%clk 0:02:55.8]} 9... c5 {[%clk 0:02:52.5]} 10. dxc5
{[%clk 0:02:55.4]} 10... bxc5 {[%clk 0:02:50.1]} 11. Be2 {[%clk 0:02:55.1]}
11... Nbd7 {[%clk 0:02:47.2]} 12. O-O {[%clk 0:02:55]} 12... Rb8 {[%clk
0:02:40.3]} 13. Qc2 {[%clk 0:02:53.4]} 13... Re8 {[%clk 0:02:32]} 14. Rfd1
{[%clk 0:02:46.4]} 14... Qb6 {[%clk 0:02:12.3]} 15. cxd5 {[%clk 0:02:01.4]}
15... Bxd5 {[%clk 0:01:37.3]} 16. Nxd5 {[%clk 0:01:53.1]} 16... exd5 {[%clk
0:01:35.7]} 17. Rb1 {[%clk 0:01:42.1]} 17... c4 {[%clk 0:01:32.2]} 18. Nd4
{[%clk 0:01:36.9]} 18... Nc5 {[%clk 0:01:20.8]} 19. Nf5 {[%clk 0:01:31.5]} 19...
Nce4 {[%clk 0:01:19.1]} 20. Bf3 {[%clk 0:01:02.9]} 20... Qb3 {[%clk 0:00:40.8]}
21. Bxe4 {[%clk 0:00:55.3]} 21... dxe4 {[%clk 0:00:40.1]} 22. Rbc1 {[%clk
0:00:37.5]} 22... Qxb2 {[%clk 0:00:36.8]} 23. Qxc4 {[%clk 0:00:36.2]} 23... Qxa3
{[%clk 0:00:34]} 24. Ra1 {[%clk 0:00:29.4]} 24... Qc5 {[%clk 0:00:29.3]} 25.
Qxc5 {[%clk 0:00:27.7]} 25... Bxc5 {[%clk 0:00:28.6]} 26. Bxf6 {[%clk
0:00:27.9]} 26... gxf6 {[%clk 0:00:28.2]} 27. Nxh6+ {[%clk 0:00:27.4]} 27... Kg7
{[%clk 0:00:27.1]} 28. Nf5+ {[%clk 0:00:27.3]} 28... Kg6 {[%clk 0:00:27]} 29. g4
{[%clk 0:00:27.9]} 29... Kg5 {[%clk 0:00:22.7]} 30. h3 {[%clk 0:00:27.5]} 30...
Bb6 {[%clk 0:00:19.5]} 31. Nd6 {[%clk 0:00:23]} 31... Re7 {[%clk 0:00:16.7]} 32.
Rd5+ {[%clk 0:00:22]} 32... Kg6 {[%clk 0:00:15.8]} 33. Rad1 {[%clk 0:00:19.9]}
33... Rd7 {[%clk 0:00:13.9]} 34. Nxe4 {[%clk 0:00:19.1]} 34... Rxd5 {[%clk
0:00:13]} 35. Rxd5 {[%clk 0:00:20]} 35... Rd8 {[%clk 0:00:12.7]} 36. Rf5 {[%clk
0:00:18.3]} 36... Rd1+ {[%clk 0:00:08.7]} 37. Kg2 {[%clk 0:00:18.1]} 37... Bd8
{[%clk 0:00:09.2]} 38. h4 {[%clk 0:00:17.4]} 38... Rd7 {[%clk 0:00:09.1]} 39.
h5+ {[%clk 0:00:17.7]} 39... Kg7 {[%clk 0:00:09.3]} 40. Kf3 {[%clk 0:00:16.7]}
40... a5 {[%clk 0:00:09.1]} 41. Nc5 {[%clk 0:00:14.8]} 41... Ra7 {[%clk
0:00:08.6]} 42. Na4 {[%clk 0:00:14.2]} 42... Rb7 {[%clk 0:00:08.8]} 43. Rd5
{[%clk 0:00:13.6]} 43... Bc7 {[%clk 0:00:07.3]} 44. Rd7 {[%clk 0:00:13.5]} 44...
Kf8 {[%clk 0:00:07.4]} 45. Nc5 {[%clk 0:00:07.8]} 45... Ra7 {[%clk 0:00:06.7]}
46. Ke2 {[%clk 0:00:07.2]} 46... Ke8 {[%clk 0:00:06.6]} 47. Rd4 {[%clk
0:00:06.1]} 47... Bb6 {[%clk 0:00:06.6]} 48. Re4+ {[%clk 0:00:06.7]} 48... Kd8
{[%clk 0:00:05]} 49. Na4 {[%clk 0:00:06.4]} 49... Bc7 {[%clk 0:00:03.8]} 50. h6
{[%clk 0:00:06.9]} 50... Kd7 {[%clk 0:00:03.8]} 51. Rd4+ {[%clk 0:00:04.8]}
51... Ke7 {[%clk 0:00:03.1]} 52. Nc5 {[%clk 0:00:04.1]} 52... Bb6 {[%clk
0:00:02.1]} 53. Re4+ {[%clk 0:00:04.7]} 53... Kd6 {[%clk 0:00:01.7]} 54. Re8
{[%clk 0:00:04.2]} 54... Bxc5 {[%clk 0:00:01.3]} 55. h7 {[%clk 0:00:04.3]} 1-0

[Event "*** Titled Tuesday Blitz"]
[Site "Chess.com"]
[Date "2021.04.06"]
[Round "5"]
[White "Eloist"]
[Black "MuhittinBuker"]
[Result "1-0"]
[WhiteElo "2355"]
[BlackElo "2195"]
[TimeControl "180+1"]
[EndTime "10:58:29 PDT"]
[Termination "Eloist won on time"]

1. e4 {[%clk 0:03:00.9]} 1... e5 {[%clk 0:02:59]} 2. Bc4 {[%clk 0:03:00.3]} 2...
Bc5 {[%clk 0:02:55.4]} 3. Nf3 {[%clk 0:02:59.4]} 3... d6 {[%clk 0:02:53.2]} 4.
O-O {[%clk 0:02:59]} 4... Nf6 {[%clk 0:02:52.2]} 5. d3 {[%clk 0:02:59.3]} 5...
O-O {[%clk 0:02:52]} 6. c3 {[%clk 0:02:59.6]} 6... a6 {[%clk 0:02:51.4]} 7. Nbd2
{[%clk 0:02:58.7]} 7... Nc6 {[%clk 0:02:49.3]} 8. Bb3 {[%clk 0:02:58.2]} 8... h6
{[%clk 0:02:47.9]} 9. Re1 {[%clk 0:02:57.8]} 9... Be6 {[%clk 0:02:47.7]} 10. Nf1
{[%clk 0:02:46.5]} 10... Re8 {[%clk 0:02:43.6]} 11. Bxe6 {[%clk 0:02:44.9]}
11... Rxe6 {[%clk 0:02:42.8]} 12. d4 {[%clk 0:02:44.4]} 12... exd4 {[%clk
0:02:39.3]} 13. cxd4 {[%clk 0:02:45.3]} 13... Bb4 {[%clk 0:02:39.5]} 14. d5
{[%clk 0:02:45.1]} 14... Bxe1 {[%clk 0:02:39.5]} 15. dxe6 {[%clk 0:02:41.4]}
15... Ba5 {[%clk 0:02:36.5]} 16. exf7+ {[%clk 0:02:40.3]} 16... Kxf7 {[%clk
0:02:36.1]} 17. Ng3 {[%clk 0:02:35]} 17... Kg8 {[%clk 0:02:34]} 18. Qb3+ {[%clk
0:02:28.9]} 18... Kh8 {[%clk 0:02:33.3]} 19. Qxb7 {[%clk 0:02:28.5]} 19... Ne5
{[%clk 0:02:31.9]} 20. Nxe5 {[%clk 0:02:25.8]} 20... dxe5 {[%clk 0:02:31.8]} 21.
Be3 {[%clk 0:02:13.2]} 21... Ng4 {[%clk 0:02:10.7]} 22. Qd5 {[%clk 0:02:06.7]}
22... Nxe3 {[%clk 0:02:06.4]} 23. Qxa5 {[%clk 0:01:54.9]} 23... Nc2 {[%clk
0:02:01.7]} 24. Rc1 {[%clk 0:01:50.6]} 24... Qd6 {[%clk 0:01:44.7]} 25. Qc3
{[%clk 0:01:32.7]} 25... Nd4 {[%clk 0:01:43.6]} 26. Qxc7 {[%clk 0:01:29.5]}
26... Qxc7 {[%clk 0:01:36.8]} 27. Rxc7 {[%clk 0:01:28.6]} 27... Rb8 {[%clk
0:01:36.6]} 28. b3 {[%clk 0:01:28.3]} 28... Rb5 {[%clk 0:01:33.5]} 29. Nf5
{[%clk 0:01:11]} 29... Nxf5 {[%clk 0:01:28.9]} 30. exf5 {[%clk 0:01:10.9]} 30...
Rd5 {[%clk 0:01:28]} 31. g4 {[%clk 0:01:05.4]} 31... Rd2 {[%clk 0:01:25.1]} 32.
a4 {[%clk 0:01:00.3]} 32... Rd3 {[%clk 0:01:21.4]} 33. Rb7 {[%clk 0:00:58.6]}
33... a5 {[%clk 0:01:04.7]} 34. Rb5 {[%clk 0:00:50.9]} 34... e4 {[%clk
0:01:02.3]} 35. Rxa5 {[%clk 0:00:38.7]} 35... Rxb3 {[%clk 0:01:01.5]} 36. Re5
{[%clk 0:00:38.2]} 36... Rb4 {[%clk 0:00:58.8]} 37. a5 {[%clk 0:00:37.8]} 37...
Ra4 {[%clk 0:00:52.1]} 38. Kg2 {[%clk 0:00:37.4]} 38... Kg8 {[%clk 0:00:51.7]}
39. Kg3 {[%clk 0:00:36.8]} 39... Kf7 {[%clk 0:00:50.6]} 40. h3 {[%clk
0:00:34.3]} 40... Ra3+ {[%clk 0:00:39.3]} 41. Kf4 {[%clk 0:00:33]} 41... Rf3+
{[%clk 0:00:39.3]} 42. Kxe4 {[%clk 0:00:32.3]} 42... Rxf2 {[%clk 0:00:39.8]} 43.
Rb5 {[%clk 0:00:30]} 43... Ra2 {[%clk 0:00:36.9]} 44. Rb7+ {[%clk 0:00:28.1]}
44... Kf8 {[%clk 0:00:29.5]} 45. Ra7 {[%clk 0:00:27.2]} 45... Ra3 {[%clk
0:00:26.8]} 46. h4 {[%clk 0:00:26.5]} 46... Ra4+ {[%clk 0:00:25.7]} 47. Kf3
{[%clk 0:00:23.6]} 47... Kg8 {[%clk 0:00:25.8]} 48. g5 {[%clk 0:00:21.7]} 48...
h5 {[%clk 0:00:24.9]} 49. g6 {[%clk 0:00:19.2]} 49... Kf8 {[%clk 0:00:25.2]} 50.
a6 {[%clk 0:00:18.9]} 50... Ra5 {[%clk 0:00:16.9]} 51. Rf7+ {[%clk 0:00:18.2]}
51... Kg8 {[%clk 0:00:15.6]} 52. a7 {[%clk 0:00:19.1]} 52... Ra3+ {[%clk
0:00:13.1]} 53. Kf4 {[%clk 0:00:19.1]} 53... Ra4+ {[%clk 0:00:12.4]} 54. Kg5
{[%clk 0:00:19]} 54... Rg4+ {[%clk 0:00:11.3]} 55. Kxh5 {[%clk 0:00:18.9]} 55...
Ra4 {[%clk 0:00:10.5]} 56. Rb7 {[%clk 0:00:17.5]} 1-0

[Event "*** Titled Tuesday Blitz"]
[Site "Chess.com"]
[Date "2021.04.06"]
[Round "5"]
[White "MerryPoppies"]
[Black "gisela_roque"]
[Result "1-0"]
[WhiteElo "2149"]
[BlackElo "1751"]
[TimeControl "180+1"]
[EndTime "10:58:29 PDT"]
[Termination "MerryPoppies won on time"]

1. d4 {[%clk 0:03:00.9]} 1... e6 {[%clk 0:02:59.4]} 2. c4 {[%clk 0:03:01.2]}
2... Nf6 {[%clk 0:02:58.5]} 3. Nc3 {[%clk 0:03:01.4]} 3... Bb4 {[%clk
0:02:57.6]} 4. Qc2 {[%clk 0:03:01.3]} 4... O-O {[%clk 0:02:55.3]} 5. Nf3 {[%clk
0:03:01]} 5... Bxc3+ {[%clk 0:02:50.1]} 6. Qxc3 {[%clk 0:03:00.6]} 6... d6
{[%clk 0:02:40.8]} 7. Bg5 {[%clk 0:02:58.7]} 7... h6 {[%clk 0:02:38.7]} 8. Bxf6
{[%clk 0:02:40.5]} 8... Qxf6 {[%clk 0:02:37.6]} 9. e4 {[%clk 0:02:38.5]} 9... e5
{[%clk 0:02:28]} 10. d5 {[%clk 0:02:22.2]} 10... Bg4 {[%clk 0:02:24.5]} 11. Be2
{[%clk 0:02:22.1]} 11... Nd7 {[%clk 0:02:18.6]} 12. h3 {[%clk 0:02:21.7]} 12...
Bxf3 {[%clk 0:02:17.9]} 13. Bxf3 {[%clk 0:02:21.3]} 13... Rfe8 {[%clk
0:02:14.2]} 14. b4 {[%clk 0:02:17.8]} 14... Nf8 {[%clk 0:02:10.3]} 15. c5 {[%clk
0:02:13]} 15... Ng6 {[%clk 0:02:06.8]} 16. O-O {[%clk 0:01:55]} 16... Rf8 {[%clk
0:01:58.7]} 17. Rac1 {[%clk 0:01:49.9]} 17... Qe7 {[%clk 0:01:51.4]} 18. cxd6
{[%clk 0:01:48.4]} 18... cxd6 {[%clk 0:01:50.5]} 19. Qc7 {[%clk 0:01:47.8]}
19... Qxc7 {[%clk 0:01:43.4]} 20. Rxc7 {[%clk 0:01:47.3]} 20... Rab8 {[%clk
0:01:43.6]} 21. Rfc1 {[%clk 0:01:46.4]} 21... Nf4 {[%clk 0:01:39.7]} 22. R1c3
{[%clk 0:01:39.3]} 22... f5 {[%clk 0:01:33.5]} 23. exf5 {[%clk 0:01:27.3]} 23...
Rxf5 {[%clk 0:01:32.4]} 24. Bg4 {[%clk 0:01:24.2]} 24... Rf7 {[%clk 0:01:26.5]}
25. g3 {[%clk 0:01:03.5]} 25... Rxc7 {[%clk 0:01:26.1]} 26. Rxc7 {[%clk
0:01:03.2]} 26... Nd3 {[%clk 0:01:21.1]} 27. a3 {[%clk 0:00:57.2]} 27... Kf8
{[%clk 0:01:05.8]} 28. Bf5 {[%clk 0:00:52.9]} 28... Nb2 {[%clk 0:01:03.1]} 29.
Rd7 {[%clk 0:00:38.1]} 29... Nc4 {[%clk 0:00:50.2]} 30. Rc7 {[%clk 0:00:36.8]}
30... Nxa3 {[%clk 0:00:49.8]} 31. Bd3 {[%clk 0:00:32.5]} 31... a6 {[%clk
0:00:37.6]} 32. Rd7 {[%clk 0:00:29.3]} 32... Nb5 {[%clk 0:00:37.3]} 33. Bxb5
{[%clk 0:00:29.1]} 33... axb5 {[%clk 0:00:38.2]} 34. Rxd6 {[%clk 0:00:29.9]}
34... Ke7 {[%clk 0:00:33.7]} 35. Re6+ {[%clk 0:00:29.6]} 35... Kd7 {[%clk
0:00:33.6]} 36. Rxe5 {[%clk 0:00:29.7]} 36... Kd6 {[%clk 0:00:32.2]} 37. Rf5
{[%clk 0:00:29.4]} 37... Rc8 {[%clk 0:00:25.8]} 38. Rf7 {[%clk 0:00:26.9]} 38...
Kxd5 {[%clk 0:00:24.4]} 39. Rxb7 {[%clk 0:00:25.7]} 39... Kc4 {[%clk 0:00:21.2]}
40. Rxg7 {[%clk 0:00:24.7]} 40... Kxb4 {[%clk 0:00:21.4]} 41. Rh7 {[%clk
0:00:24.6]} 41... Rc6 {[%clk 0:00:21.3]} 42. g4 {[%clk 0:00:20.1]} 42... Kb3
{[%clk 0:00:21.4]} 43. Rb7 {[%clk 0:00:19.9]} 43... b4 {[%clk 0:00:20.6]} 44. f4
{[%clk 0:00:20.1]} 44... Kc3 {[%clk 0:00:19.1]} 45. Kg2 {[%clk 0:00:20.4]} 45...
b3 {[%clk 0:00:19.3]} 46. Kg3 {[%clk 0:00:20.5]} 46... Kc2 {[%clk 0:00:19.4]}
47. Kh4 {[%clk 0:00:19.7]} 47... Rc5 {[%clk 0:00:17.7]} 48. g5 {[%clk
0:00:18.8]} 48... hxg5+ {[%clk 0:00:17.1]} 49. fxg5 {[%clk 0:00:19.3]} 49...
Rc4+ {[%clk 0:00:15.8]} 50. Kh5 {[%clk 0:00:19.4]} 50... b2 {[%clk 0:00:14.3]}
51. g6 {[%clk 0:00:18.6]} 51... Rc3 {[%clk 0:00:13.8]} 52. Rxb2+ {[%clk
0:00:18.2]} 52... Kxb2 {[%clk 0:00:13.4]} 53. h4 {[%clk 0:00:18.7]} 53... Rg3
{[%clk 0:00:11.7]} 54. Kh6 {[%clk 0:00:18.2]} 54... Kc3 {[%clk 0:00:11.6]} 55.
g7 {[%clk 0:00:18]} 55... Kd4 {[%clk 0:00:11.8]} 56. h5 {[%clk 0:00:15.3]} 56...
Ke5 {[%clk 0:00:11.5]} 57. Kh7 {[%clk 0:00:15.8]} 57... Kf6 {[%clk 0:00:05.1]}
58. h6 {[%clk 0:00:15.3]} 58... Kf7 {[%clk 0:00:03.8]} 59. Kh8 {[%clk
0:00:15.4]} 1-0

[Event "*** Titled Tuesday Blitz"]
[Site "Chess.com"]
[Date "2021.04.06"]
[Round "5"]
[White "attack2mateU"]
[Black "grunbergmihai"]
[Result "1/2-1/2"]
[WhiteElo "2690"]
[BlackElo "2477"]
[TimeControl "180+1"]
[EndTime "10:58:31 PDT"]
[Termination "Game drawn - insufficient material"]

1. e4 {[%clk 0:03:00.9]} 1... Nc6 {[%clk 0:02:51.5]} 2. Nf3 {[%clk 0:03:00]}
2... d5 {[%clk 0:02:49.7]} 3. exd5 {[%clk 0:02:59.8]} 3... Qxd5 {[%clk
0:02:49.6]} 4. Nc3 {[%clk 0:02:54]} 4... Qa5 {[%clk 0:02:47.3]} 5. d4 {[%clk
0:02:50.7]} 5... Bg4 {[%clk 0:02:44.4]} 6. Bb5 {[%clk 0:02:50.3]} 6... e6 {[%clk
0:02:41.2]} 7. h3 {[%clk 0:02:41.4]} 7... Bxf3 {[%clk 0:02:31.5]} 8. Qxf3 {[%clk
0:02:42.3]} 8... Ne7 {[%clk 0:02:21.4]} 9. Bd2 {[%clk 0:02:29.8]} 9... O-O-O
{[%clk 0:02:11.6]} 10. Qxf7 {[%clk 0:01:44.2]} 10... Nxd4 {[%clk 0:02:10.3]} 11.
Bd3 {[%clk 0:01:44.8]} 11... Qe5+ {[%clk 0:02:03.3]} 12. Ne4 {[%clk 0:01:37.6]}
12... Nef5 {[%clk 0:01:39.4]} 13. O-O {[%clk 0:01:16.3]} 13... Bd6 {[%clk
0:01:09.9]} 14. Nxd6+ {[%clk 0:01:14.8]} 14... Qxd6 {[%clk 0:01:07.3]} 15. Qh5
{[%clk 0:01:03.9]} 15... g6 {[%clk 0:01:01.6]} 16. Qg4 {[%clk 0:01:02.8]} 16...
h5 {[%clk 0:00:58.1]} 17. Qe4 {[%clk 0:01:02.7]} 17... Qd5 {[%clk 0:00:51.7]}
18. Bg5 {[%clk 0:00:50.8]} 18... Qxe4 {[%clk 0:00:48.7]} 19. Bxe4 {[%clk
0:00:51.7]} 19... Rd6 {[%clk 0:00:47.6]} 20. Rfe1 {[%clk 0:00:51.4]} 20... Nc6
{[%clk 0:00:31.2]} 21. Rad1 {[%clk 0:00:30.4]} 21... Rh7 {[%clk 0:00:30]} 22.
Rxd6 {[%clk 0:00:27.6]} 22... cxd6 {[%clk 0:00:29.3]} 23. Bxc6 {[%clk
0:00:27.7]} 23... bxc6 {[%clk 0:00:28.4]} 24. Rxe6 {[%clk 0:00:28.4]} 24... Rg7
{[%clk 0:00:23.1]} 25. Bf6 {[%clk 0:00:16.8]} 25... Kd7 {[%clk 0:00:20.1]} 26.
Bxg7 {[%clk 0:00:15.1]} 26... Kxe6 {[%clk 0:00:19.7]} 27. Bc3 {[%clk 0:00:16]}
27... d5 {[%clk 0:00:19.2]} 28. Kf1 {[%clk 0:00:16.3]} 28... d4 {[%clk 0:00:19]}
29. Bd2 {[%clk 0:00:16.3]} 29... Kd5 {[%clk 0:00:19.9]} 30. Ke2 {[%clk
0:00:14.8]} 30... Nd6 {[%clk 0:00:18]} 31. b3 {[%clk 0:00:13.1]} 31... c5 {[%clk
0:00:17.6]} 32. g4 {[%clk 0:00:13]} 32... hxg4 {[%clk 0:00:17.2]} 33. hxg4
{[%clk 0:00:13.9]} 33... c4 {[%clk 0:00:18.1]} 34. f3 {[%clk 0:00:13.4]} 34...
c3 {[%clk 0:00:13]} 35. Bf4 {[%clk 0:00:13.2]} 35... Nb7 {[%clk 0:00:10.1]} 36.
Bg3 {[%clk 0:00:08.6]} 36... Nc5 {[%clk 0:00:09.9]} 37. Bh4 {[%clk 0:00:08.6]}
37... Na6 {[%clk 0:00:08.7]} 38. Be7 {[%clk 0:00:08.3]} 38... Nc7 {[%clk
0:00:08.5]} 39. Kd3 {[%clk 0:00:07.1]} 39... Ne6 {[%clk 0:00:08.4]} 40. Ke2
{[%clk 0:00:07]} 40... Nf4+ {[%clk 0:00:08.3]} 41. Kd1 {[%clk 0:00:07.2]} 41...
d3 {[%clk 0:00:08]} 42. cxd3 {[%clk 0:00:07.2]} 42... Nxd3 {[%clk 0:00:07.9]}
43. Kc2 {[%clk 0:00:06.4]} 43... Ne1+ {[%clk 0:00:06.7]} 44. Kxc3 {[%clk
0:00:07.1]} 44... Nxf3 {[%clk 0:00:07.6]} 45. Kb4 {[%clk 0:00:07.5]} 45... Ne5
{[%clk 0:00:06.9]} 46. Kb5 {[%clk 0:00:06.1]} 46... Nxg4 {[%clk 0:00:06.5]} 47.
Ka6 {[%clk 0:00:06.8]} 47... Ne5 {[%clk 0:00:05.8]} 48. Bg5 {[%clk 0:00:05.1]}
48... Nc6 {[%clk 0:00:05.4]} 49. a3 {[%clk 0:00:04.5]} 49... Nd4 {[%clk
0:00:04.9]} 50. b4 {[%clk 0:00:04.2]} 50... Kc4 {[%clk 0:00:04.7]} 51. Kxa7
{[%clk 0:00:03.8]} 51... Nb5+ {[%clk 0:00:04.1]} 52. Kb6 {[%clk 0:00:04.2]}
52... Nxa3 {[%clk 0:00:05]} 53. Kc6 {[%clk 0:00:04]} 53... Kxb4 {[%clk
0:00:04.8]} 54. Kd6 {[%clk 0:00:04.9]} 54... Kc4 {[%clk 0:00:04.4]} 55. Ke6
{[%clk 0:00:05.8]} 55... Nb5 {[%clk 0:00:04.8]} 56. Kf6 {[%clk 0:00:06.7]} 56...
Na3 {[%clk 0:00:05]} 57. Kxg6 {[%clk 0:00:07.6]} 1/2-1/2